bitfinex/quotes_ETHUSD_20241124
["timestamp","ask_amount","ask_price","bid_price","bid_amount"]
[1732438736690,0.09437745,3393.5,3393.0,2.9471]
[1732438737806,0.09437745,3393.5,3393.1,0.8218]
[1732438737983,0.09437745,3393.5,3393.1,0.85126786]
[1732438738213,0.09437745,3393.5,3393.2,2.9471]
[1732438738398,0.09437745,3393.5,3393.2,3.32693679]
[1732438739443,0.09437745,3393.5,3393.2,2.9471]
[1732438743222,0.55,3393.4,3393.2,2.9471]
[1732438743423,1.3809,3393.3,3393.2,2.9471]
[1732438743931,1.47563611,3393.3,3393.2,2.9471]
[1732438750843,1.47563611,3393.3,3393.2,1.93996873]
[1732438751145,1.57563611,3393.3,3393.2,1.93996873]
[1732438751493,0.8309,3393.0,3391.6,0.84537719]
[1732438751652,0.55,3392.3,3390.6,0.8159]
[1732438751858,0.55,3392.3,3390.8,0.8159]
[1732438752173,0.55,3392.3,3390.9,0.2938]
[1732438752358,0.55,3392.1,3390.9,0.32328517]
[1732438752537,0.55,3392.1,3390.9,0.2938]
[1732438752788,0.55,3392.3,3390.9,0.2938]
[1732438752942,0.55,3391.9,3390.9,0.2938]
[1732438753169,0.55,3392.3,3390.9,0.2938]
[1732438753349,0.09437986,3391.8,3390.9,0.2938]
[1732438753566,0.55,3392.3,3390.9,0.2938]
[1732438753738,0.09437986,3391.7,3390.9,0.2938]
[1732438754096,0.09405984,3391.6,3390.9,0.2938]
[1732438754381,0.55,3391.9,3390.9,0.2938]
[1732438754584,0.09405984,3391.5,3390.9,0.2938]
[1732438754795,0.55,3391.9,3390.9,0.2938]
[1732438754948,0.09405984,3391.4,3390.9,0.2938]
[1732438755146,0.55,3391.9,3390.9,0.2938]
[1732438755644,0.55,3391.7,3390.9,0.2938]
[1732438756084,0.55,3391.9,3390.9,0.2938]
[1732438756300,0.55,3391.7,3390.9,0.2938]
[1732438756461,0.55,3391.5,3390.9,0.2938]
[1732438756663,0.55,3391.5,3390.8,0.8159]
[1732438756990,0.55,3391.3,3390.3,0.8159]
[1732438757192,0.55,3391.3,3390.3,1.4683455]
[1732438757360,0.55,3391.5,3390.3,1.4683455]
[1732438757562,0.55,3391.1,3390.4,0.17916355]
[1732438757961,0.55,3391.1,3390.5,0.16770006]
[1732438758366,0.55,3391.4,3390.5,0.16770006]
[1732438758561,0.09405984,3391.0,3390.3,0.8159]
[1732438758767,0.55,3391.5,3390.3,0.8159]
[1732438758989,0.09405984,3390.9,3390.3,0.8159]
[1732438759152,0.55,3391.5,3390.3,0.8159]
[1732438759357,0.09405984,3390.8,3390.3,0.8159]
[1732438759549,0.55,3391.5,3390.3,1.21681915]
[1732438759873,0.55,3391.3,3390.3,1.21681915]
[1732438760426,0.55,3391.1,3390.3,1.21681915]
[1732438760878,0.55,3391.3,3390.3,1.21681915]
[1732438761078,0.55,3390.9,3390.3,1.21681915]
[1732438761279,0.55,3391.3,3390.3,1.21681915]
[1732438761787,0.09356992,3391.2,3390.3,1.21681915]
[1732438762107,0.55,3391.1,3390.3,1.21681915]
[1732438762504,0.55,3391.3,3390.3,1.21681915]
[1732438762681,0.55,3390.9,3390.3,1.21681915]
[1732438762993,0.09356992,3390.8,3390.3,1.21681915]
[1732438764322,0.09356992,3390.8,3390.3,0.8159]
[1732438764923,0.8277,3390.6,3389.8,0.8152]
[1732438765223,0.55,3390.3,3388.4,0.8152]
[1732438765524,0.55,3390.1,3388.6,0.8152]
[1732438765729,0.55,3390.1,3388.7,0.8152]
[1732438766015,0.09348256,3390.0,3388.7,0.8152]
[1732438766200,0.55,3389.9,3388.7,0.8152]
[1732438766516,0.55,3389.7,3388.7,0.8152]
[1732438767107,0.0933248,3389.6,3388.7,0.8152]
[1732438767322,0.55,3389.5,3388.7,0.8152]
[1732438767922,0.0933248,3389.4,3388.7,0.8152]
[1732438768416,0.0933248,3389.3,3388.7,0.8152]
[1732438768622,0.55,3389.7,3388.7,0.8152]
[1732438768802,0.0933248,3389.2,3388.7,0.8152]
[1732438769120,0.55,3389.7,3388.7,0.8152]
[1732438769478,0.55,3389.5,3388.7,0.8152]
[1732438769972,0.0933248,3389.4,3388.7,0.8152]
[1732438770178,0.55,3389.7,3388.7,0.8152]
[1732438770452,0.0933248,3389.6,3388.8,0.02950526]
[1732438770735,0.55,3389.7,3388.8,0.02950526]
[1732438771033,0.0933248,3389.6,3388.8,0.02950526]
[1732438771252,0.55,3389.7,3388.8,0.02950526]
[1732438771432,0.0933248,3389.5,3388.8,0.02950526]
[1732438771594,0.55,3389.7,3388.7,0.84470396]
[1732438771794,0.09299473,3389.6,3388.7,0.84470396]
[1732438771994,0.8277,3390.1,3388.7,0.84470396]
[1732438772227,0.64299473,3390.0,3388.7,0.84470396]
[1732438778183,0.09299473,3390.0,3388.7,0.84470396]
[1732438778467,0.09299473,3390.0,3389.0,0.795]
[1732438778648,0.55,3390.3,3389.1,0.97344246]
[1732438778850,0.09292675,3389.9,3389.1,0.8245013]
[1732438779031,0.55,3390.3,3389.1,0.795]
[1732438779370,0.09292675,3389.8,3389.2,0.02950132]
[1732438779533,0.55,3390.3,3389.2,0.02950132]
[1732438779731,0.09292675,3389.7,3389.2,0.02950132]
[1732438780071,0.09292675,3389.6,3389.2,0.02950132]
[1732438780226,0.55,3390.3,3389.2,0.02950132]
[1732438780434,0.09292675,3389.5,3389.2,0.02950132]
[1732438780629,0.55,3390.3,3389.2,0.02950132]
[1732438780868,0.09292675,3389.4,3389.1,0.795]
[1732438781045,0.55,3390.0,3389.1,0.795]
[1732438781384,0.09292675,3389.3,3388.5,0.7535]
[1732438781532,0.8089,3389.9,3388.5,0.7535]
[1732438781734,0.09292675,3389.2,3388.6,0.2938]
[1732438781972,0.55,3389.8,3388.6,0.2938]
[1732438782366,0.09292675,3389.7,3388.6,0.2938]
[1732438782567,0.09292675,3389.7,3388.7,0.14774168]
[1732438785250,0.55,3389.6,3388.6,0.2938]
[1732438785461,0.8089,3389.5,3388.6,0.2938]
[1732438785773,0.55,3389.4,3388.6,0.2938]
[1732438785973,0.64288302,3389.4,3388.6,0.2938]
[1732438789175,0.64288302,3389.4,3388.5,0.7535]
[1732438789984,0.64288302,3389.4,3388.1,0.2938]
[1732438790200,0.55,3389.2,3388.2,0.7535]
[1732438790704,0.55,3389.0,3388.2,0.7535]
[1732438791011,0.55,3388.8,3387.8,0.7535]
[1732438791217,0.8089,3388.9,3386.6,0.1]
[1732438791218,0.55,3388.6,3387.1,0.7535]
[1732438791361,0.55,3388.6,3387.2,0.32331511]
[1732438791568,0.55,3388.6,3387.4,0.2938]
[1732438791962,0.09288302,3388.5,3387.4,0.2938]
[1732438792158,0.8089,3388.3,3387.4,0.2938]
[1732438792595,0.55,3388.2,3387.4,0.2938]
[1732438792764,0.64288302,3388.2,3387.4,0.2938]
[1732438793277,0.09288302,3388.2,3387.6,0.2938]
[1732438793482,0.8089,3388.5,3387.6,0.2938]
[1732438793708,0.09265225,3388.1,3387.6,0.2938]
[1732438793913,0.8089,3388.5,3387.6,0.2938]
[1732438794066,0.09265225,3388.0,3387.6,0.2938]
[1732438794262,0.8089,3388.5,3387.6,0.2938]
[1732438794489,0.09265225,3387.9,3387.6,0.2938]
[1732438794689,0.8089,3388.5,3387.6,0.2938]
[1732438794874,0.09265225,3387.8,3387.6,0.2938]
[1732438795078,0.8089,3388.5,3387.6,0.2938]
[1732438795276,0.09265225,3387.7,3387.6,0.2938]
[1732438795476,0.8089,3387.7,3386.5,2.87]
[1732438795674,0.90155225,3387.7,3386.7,0.7921]
[1732438796725,0.90155225,3387.7,3386.8,0.02952261]
[1732438798703,0.09265225,3387.7,3386.8,0.02952261]
[1732438798904,0.55,3387.9,3386.8,0.02952261]
[1732438799094,0.09265225,3387.6,3386.9,0.7921]
[1732438799297,0.7882,3388.3,3387.1,0.7921]
[1732438799508,0.09265225,3387.5,3387.3,0.7921]
[1732438799714,0.7882,3388.3,3387.4,0.02951518]
[1732438802864,0.8222,3388.8,3387.5,0.8051]
[1732438803067,0.8222,3388.8,3387.7,0.8051]
[1732438803312,0.8222,3389.3,3387.9,0.8051]
[1732438803521,0.8222,3389.3,3388.1,0.8051]
[1732438804819,0.55,3389.2,3388.2,0.02950911]
[1732438805109,0.8222,3389.3,3388.2,0.02950911]
[1732438805322,0.8222,3389.3,3388.1,0.8051]
[1732438805676,0.55,3389.2,3388.1,0.8051]
[1732438805818,0.8222,3389.3,3388.2,0.02950857]
[1732438806158,0.8222,3390.2,3388.2,0.83460857]
[1732438806666,0.8222,3390.2,3388.5,0.8051]
[1732438806873,0.8222,3390.2,3388.7,0.8051]
[1732438807021,0.8222,3390.2,3388.8,0.83460107]
[1732438807763,0.8222,3390.2,3388.8,0.8051]
[1732438807916,0.8222,3389.7,3388.1,0.8051]
[1732438808126,0.55,3389.6,3388.2,2.9508]
[1732438808324,0.55,3389.4,3388.2,2.9508]
[1732438808645,0.55,3389.2,3388.2,2.9508]
[1732438809414,0.55,3389.2,3388.3,0.8051]
[1732438809563,0.55,3389.2,3388.4,2.9512]
[1732438810667,0.8222,3389.1,3388.4,2.9512]
[1732438811299,0.55,3388.6,3388.4,2.9512]
[1732438811510,1.3722,3388.5,3388.4,2.9512]
[1732438815592,0.8222,3388.1,3385.8,0.2938]
[1732438815803,0.8222,3387.6,3386.0,0.8051]
[1732438816115,0.55,3387.5,3386.0,0.8051]
[1732438817678,0.55,3387.3,3386.0,0.8051]
[1732438817874,0.55,3387.3,3386.1,0.38346274]
[1732438818104,0.55,3387.1,3386.1,0.38346274]
[1732438818422,0.8222,3387.0,3386.0,0.8051]
[1732438818914,0.09230709,3386.9,3386.0,0.8051]
[1732438826027,0.09230709,3386.9,3386.1,0.2938]
[1732438826789,0.55,3386.9,3386.1,0.2938]
[1732438826985,0.09157563,3386.8,3386.1,0.2938]
[1732438829121,0.09157563,3386.8,3386.1,0.32332873]
[1732438829323,0.8222,3387.0,3386.1,0.32332873]
[1732438829531,0.55,3388.0,3386.1,0.32332873]
[1732438829700,0.0915051,3386.9,3386.1,0.32332873]
[1732438829901,0.8293,3387.2,3386.1,0.32332873]
[1732438830985,0.8293,3387.2,3386.3,0.2938]
[1732438831231,0.8293,3388.6,3386.5,1.1218]
[1732438831394,0.8293,3388.6,3386.7,0.828]
[1732438831593,0.8293,3388.4,3387.0,0.2938]
[1732438831796,0.8293,3388.4,3387.0,0.32331933]
[1732438832206,0.09159022,3388.3,3387.0,0.32331933]
[1732438833446,0.09159022,3388.3,3387.0,0.2938]
[1732438833631,0.55,3388.3,3387.0,0.2938]
[1732438834047,0.55,3388.1,3387.0,0.2938]
[1732438834465,0.55,3388.3,3387.0,0.2938]
[1732438834742,0.09159022,3388.0,3387.1,0.828]
[1732438834954,0.55,3388.3,3387.1,0.828]
[1732438835108,0.09159022,3387.9,3387.1,0.828]
[1732438835306,0.55,3388.3,3387.1,0.828]
[1732438835525,0.09159022,3387.8,3387.1,0.828]
[1732438835792,0.55,3388.3,3387.1,0.828]
[1732438835960,0.09159022,3387.7,3387.2,0.2938]
[1732438836164,0.55,3388.3,3387.2,0.2938]
[1732438836556,0.55,3388.1,3387.2,0.2938]
[1732438836786,0.09159022,3388.2,3387.2,0.32331906]
[1732438836988,0.54852427,3388.3,3387.2,0.32331906]
[1732438837291,0.09159022,3388.2,3387.2,0.32331906]
[1732438837450,0.09159022,3388.2,3387.3,0.828]
[1732438837652,0.09159022,3388.2,3386.4,3.0]
[1732438837653,0.09159022,3388.2,3387.4,0.0295168]
[1732438837891,0.8293,3388.7,3387.5,1.1218]
[1732438838197,0.09159022,3388.1,3387.6,0.02951532]
[1732438838355,0.8293,3388.7,3387.6,0.02951532]
[1732438838879,0.09159022,3388.6,3387.6,0.02951532]
[1732438839274,0.09159022,3388.6,3387.7,0.828]
[1732438841481,0.55,3388.6,3387.7,0.828]
[1732438841691,0.09183819,3388.5,3387.8,0.02951351]
[1732438842419,0.09183819,3388.5,3387.9,0.8326]
[1732438842586,0.8225,3389.3,3388.0,0.8621097]
[1732438843099,0.0922539,3389.2,3388.0,0.8621097]
[1732438843699,0.55,3389.1,3388.0,0.8621097]
[1732438843918,0.8225,3389.3,3388.0,0.8621097]
[1732438844097,0.0922539,3389.0,3388.0,0.8621097]
[1732438844292,0.55,3389.2,3388.0,0.8621097]
[1732438844492,0.0922539,3388.9,3388.0,0.8621097]
[1732438844739,0.55,3389.2,3388.0,0.8621097]
[1732438844898,0.0922539,3388.8,3388.0,0.8621097]
[1732438845097,2.26922385,3389.9,3388.0,0.8621097]
[1732438845300,0.0922539,3388.7,3388.0,0.8621097]
[1732438845532,0.8225,3389.6,3388.0,0.8621097]
[1732438845737,0.0922539,3388.6,3388.1,0.8326]
[1732438845896,0.8225,3390.1,3388.2,3.81340593]
[1732438846240,0.0922539,3388.5,3388.4,0.8326]
[1732438846411,0.8225,3390.1,3388.4,3.81330129]
[1732438846742,0.9147539,3389.9,3388.5,0.8326]
[1732438847235,1.3725,3389.8,3388.5,0.8326]
[1732438847435,0.8225,3389.7,3388.5,0.8326]
[1732438847639,0.55,3389.6,3388.5,0.8326]
[1732438847846,0.6422539,3389.6,3388.5,0.8326]
[1732438848948,0.55,3389.4,3388.5,0.8326]
[1732438849129,0.8225,3389.5,3388.6,2.9511]
[1732438849313,0.0922539,3389.3,3388.6,2.9511]
[1732438849517,0.55,3389.4,3388.6,2.9511]
[1732438850137,0.0922539,3389.3,3388.7,0.8621073]
[1732438850320,0.8225,3390.1,3388.7,0.8621073]
[1732438850321,0.8225,3390.4,3388.8,2.9509]
[1732438850524,0.0922539,3389.2,3388.9,0.86210097]
[1732438850742,0.8225,3390.4,3389.0,2.9507]
[1732438850948,0.8225,3390.4,3389.1,0.86210037]
[1732438851143,0.8225,3390.4,3389.2,3.33178004]
[1732438851349,0.8225,3390.4,3389.3,0.8326]
[1732438851653,0.8225,3390.4,3389.4,2.9504]
[1732438852019,3.8225,3390.7,3389.5,0.8326]
[1732438852219,3.8225,3390.7,3389.6,2.9502]
[1732438852539,3.8225,3390.7,3389.6,3.33142987]
[1732438856255,3.8225,3390.7,3389.7,0.86209851]
[1732438856460,3.8225,3390.7,3389.8,2.95]
[1732438856824,3.0,3390.7,3389.8,2.95]
[1732438857022,3.0,3390.7,3389.9,0.8326]
[1732438857258,3.0,3390.7,3389.9,3.7825]
[1732438857465,3.0,3390.7,3389.9,4.19887299]
[1732438857821,0.8225,3391.0,3389.9,4.19887299]
[1732438858154,0.8225,3391.3,3389.9,4.19887299]
[1732438858787,1.999558,3391.3,3389.9,4.19887299]
[1732438858938,0.8225,3391.3,3389.9,4.19887299]
[1732438859279,0.8225,3391.3,3389.9,7.19887299]
[1732438860036,89.53295471,3390.0,3389.9,7.19887299]
[1732438861053,89.62633111,3390.0,3389.9,7.19887299]
[1732438862342,89.62633111,3390.0,3389.9,7.49297299]
[1732438863298,61.01210355,3390.0,3389.9,6.894]
[1732438863592,45.53601658,3390.0,3389.9,7.76238818]
[1732438863880,44.30878771,3390.0,3389.9,7.76238818]
[1732438864040,43.31120019,3390.0,3389.9,7.76238818]
[1732438864237,42.28357667,3390.0,3389.9,10.60238818]
[1732438864686,33.42677667,3390.0,3389.9,10.60238818]
[1732438864845,33.42677667,3390.0,3389.9,10.24561567]
[1732438865180,32.12677667,3390.0,3389.9,10.24561567]
[1732438865364,32.12677667,3390.0,3389.9,10.60238818]
[1732438865753,32.12677667,3390.0,3389.9,9.284]
[1732438865993,32.12677667,3390.0,3389.9,6.184]
[1732438866182,32.12677667,3390.0,3389.9,6.2134916]
[1732438866673,32.12677667,3390.0,3389.9,3.2734916]
[1732438868614,32.12677667,3390.0,3389.9,6.8234916]
[1732438868923,32.12677667,3390.0,3389.9,6.794]
[1732438870006,27.18791152,3390.0,3389.9,6.244]
[1732438870213,27.18791152,3390.0,3389.9,6.27349189]
[1732438870420,27.18791152,3390.0,3389.9,7.2802644]
[1732438870723,27.18791152,3390.0,3389.9,7.75600293]
[1732438871803,27.18791152,3390.0,3389.9,7.29923042]
[1732438872175,27.18791152,3390.0,3389.9,7.19923042]
[1732438872376,27.18791152,3390.0,3389.9,6.794]
[1732438872894,27.18791152,3390.0,3389.9,7.19923042]
[1732438874079,27.18791152,3390.0,3389.9,6.244]
[1732438874391,27.09453512,3390.0,3389.9,6.27349197]
[1732438874791,27.18843552,3390.0,3389.9,6.27349197]
[1732438882825,27.18843552,3390.0,3389.9,6.82349197]
[1732438883027,27.18843552,3390.0,3389.9,6.794]
[1732438883240,27.09453512,3390.0,3389.9,6.794]
[1732438883660,27.18843552,3390.0,3389.9,6.794]
[1732438885366,27.18843552,3390.0,3389.9,7.29923042]
[1732438885556,23.95123525,3390.0,3389.9,7.75600293]
[1732438886266,23.65703525,3390.0,3389.9,7.75600293]
[1732438886685,22.97583525,3390.0,3389.9,7.75600293]
[1732438887174,20.99494671,3390.0,3389.9,7.75600293]
[1732438887853,19.82284672,3390.0,3389.9,7.75600293]
[1732438888165,18.79434672,3390.0,3389.9,7.75600293]
[1732438888576,18.79434672,3390.0,3389.9,7.39923042]
[1732438888879,18.79434672,3390.0,3389.9,6.994]
[1732438889067,18.79434672,3390.0,3389.9,6.444]
[1732438890404,18.79434672,3390.0,3389.9,6.994]
[1732438891964,18.79434672,3390.0,3389.9,7.06142718]
[1732438892169,18.62935728,3390.0,3389.9,7.06142718]
[1732438892393,9.80935728,3390.0,3389.9,7.06142718]
[1732438893917,8.97875728,3390.0,3389.9,7.06142718]
[1732438894079,6.88060978,3390.0,3389.9,7.06142718]
[1732438894608,5.60260978,3390.0,3389.9,7.06142718]
[1732438894968,5.16230978,3390.0,3389.9,7.06142718]
[1732438896322,4.77916959,3390.0,3389.9,7.82343011]
[1732438898100,2.8403696,3390.0,3389.9,7.4666576]
[1732438898302,2.54675571,3390.0,3389.9,7.4666576]
[1732438898513,0.8046,3391.5,3390.6,3.9441]
[1732438898711,0.8046,3391.5,3391.0,3.2941]
[1732438898902,0.8046,3391.5,3391.2,3.2941]
[1732438899199,0.8046,3391.5,3391.4,3.2941]
[1732438899395,0.8046,3391.5,3391.4,3.2427]
[1732438899612,0.8046,3391.5,3391.4,6.2427]
[1732438900534,0.8046,3391.5,3391.4,6.27217788]
[1732438901421,0.8046,3391.5,3391.4,6.2427]
[1732438901982,0.8002,3391.9,3391.6,0.2941]
[1732438902285,0.8002,3391.9,3391.8,0.2941]
[1732438902489,0.8002,3391.9,3391.8,3.2424]
[1732438903656,0.8002,3391.9,3391.8,6.2424]
[1732438909467,0.8002,3392.5,3392.0,0.2941]
[1732438909632,0.8002,3392.5,3392.2,3.2941]
[1732438909827,0.8002,3392.5,3392.4,0.2941]
[1732438910028,0.8002,3392.5,3392.4,3.2419]
[1732438918611,0.8002,3392.5,3392.4,3.27137252]
[1732438919408,0.89,3392.6,3392.5,3.2941]
[1732438919621,0.89,3392.6,3392.5,6.2418]
[1732438920128,0.89,3393.0,3392.5,6.2418]
[1732438920280,0.89,3393.0,3392.6,0.02946936]
[1732438920481,0.89,3393.0,3392.8,3.2941]
[1732438920682,0.89,3393.0,3392.9,6.2414]
[1732438920994,0.89,3393.0,3392.9,3.2414]
[1732438920995,1.6902,3393.0,3392.9,3.2414]
[1732438921502,1.78485672,3393.0,3392.9,3.2414]
[1732438921884,1.78485672,3393.0,3392.9,2.9473]
[1732438923114,1.78255672,3393.0,3392.9,2.9473]
[1732438930510,1.78255672,3393.0,3392.9,3.2414]
[1732438931054,0.98235672,3393.0,3392.9,3.63583918]
[1732438931212,0.98235672,3393.0,3392.9,4.09575411]
[1732438931634,0.98235672,3393.0,3392.9,7.06628627]
[1732438931947,0.8877,3393.0,3392.9,7.06628627]
[1732438932108,0.98238823,3393.0,3392.9,7.06628627]
[1732438933730,0.8877,3393.0,3392.9,7.06628627]
[1732438935444,0.04972715,3393.6,3393.1,0.2941]
[1732438935604,0.04972715,3393.6,3393.3,3.2941]
[1732438935811,0.04972715,3393.6,3393.5,3.2941]
[1732438936139,0.35972715,3393.6,3393.5,7.06578627]
[1732438938726,0.35972715,3393.6,3393.5,6.67134709]
[1732438939061,0.35972715,3393.6,3393.5,6.2409]
[1732438939358,0.35972715,3393.6,3393.5,6.2703578]
[1732438940348,0.35972715,3393.6,3393.5,6.70080489]
[1732438940510,0.35972715,3393.6,3393.5,7.06578627]
[1732438942103,0.35972715,3393.6,3393.5,7.61578627]
[1732438942471,0.35972715,3393.6,3393.5,7.68314192]
[1732438943309,0.7741,3394.8,3394.0,0.8441]
[1732438943478,0.7741,3394.8,3394.2,3.0]
[1732438943810,0.7741,3394.8,3394.4,3.0]
[1732438943984,0.7741,3396.5,3394.6,3.0]
[1732438944188,0.7741,3396.5,3394.8,3.0]
[1732438944399,0.09507097,3396.4,3395.0,3.0]
[1732438944697,0.7741,3396.3,3395.1,2.97484746]
[1732438945116,0.09507097,3396.2,3395.1,2.97484746]
[1732438945441,0.7741,3396.1,3395.1,2.97484746]
[1732438948341,0.0958383,3396.0,3395.1,2.97484746]
[1732438948494,0.7741,3395.9,3395.1,2.97484746]
[1732438951740,0.55,3395.8,3395.1,2.9454]
[1732438952045,0.86991652,3395.7,3395.1,2.9454]
[1732438952930,0.7741,3395.5,3395.1,2.9454]
[1732438953232,0.7741,3395.3,3395.1,2.9454]
[1732438953935,0.86986813,3395.2,3395.1,2.9454]
[1732438955843,0.64576813,3395.2,3395.1,2.1121]
[1732438956176,1.41986813,3395.2,3395.1,2.1121]
[1732438956518,1.57185494,3395.2,3395.1,2.1121]
[1732438959133,1.57185494,3395.2,3395.1,2.09471875]
[1732438959962,1.67185494,3395.2,3395.1,2.09471875]
[1732438963270,0.55,3394.7,3393.2,0.02945835]
[1732438963572,0.7565,3394.2,3392.8,0.39443918]
[1732438963876,0.55,3393.9,3392.8,0.39443918]
[1732438964019,0.7565,3393.7,3392.8,0.39443918]
[1732438964224,0.7565,3393.7,3392.9,2.9469]
[1732438964574,0.09518962,3393.6,3392.9,3.34133918]
[1732438964726,0.7565,3393.7,3392.9,3.34133918]
[1732438965063,0.09518962,3393.6,3392.9,3.34133918]
[1732438965562,0.7565,3393.7,3392.9,3.34133918]
[1732438965871,0.09518962,3393.6,3392.9,3.34133918]
[1732438966070,0.09518962,3393.6,3393.0,1.68235671]
[1732438966360,0.7565,3394.1,3393.2,0.828]
[1732438966570,0.09502734,3394.0,3393.3,0.02946333]
[1732438966870,0.09502734,3394.0,3393.4,0.42697976]
[1732438967163,0.7565,3394.4,3393.5,2.97626337]
[1732438967364,0.09502734,3394.3,3393.5,3.37070255]
[1732438967666,0.7565,3394.4,3393.6,0.38011496]
[1732438967866,0.7565,3394.4,3393.7,2.9466]
[1732438968037,0.7565,3394.4,3393.7,2.97606137]
[1732438968221,0.7565,3394.4,3393.7,2.9466]
[1732438968425,0.09502734,3394.3,3393.7,2.9466]
[1732438968826,0.7565,3394.4,3393.7,2.9466]
[1732438969026,0.09502734,3394.2,3393.7,2.9466]
[1732438969263,0.7565,3394.4,3393.7,2.9466]
[1732438969671,0.09502734,3394.3,3393.7,2.9466]
[1732438970030,0.7565,3394.4,3393.7,2.9466]
[1732438970366,0.09502734,3394.3,3393.7,2.9466]
[1732438970657,0.7565,3394.4,3393.7,2.9466]
[1732438971024,0.09502734,3394.3,3393.7,2.9466]
[1732438971426,0.7565,3394.4,3393.7,3.27361633]
[1732438971842,0.0949547,3394.3,3393.7,3.27361633]
[1732438972135,0.7565,3394.4,3393.7,3.27361633]
[1732438972344,0.0949547,3394.3,3393.7,3.27361633]
[1732438972562,0.7565,3394.4,3393.7,3.27361633]
[1732438972733,0.0949547,3394.3,3393.8,0.33030775]
[1732438973062,0.7065,3394.4,3393.9,2.9465]
[1732438973448,0.0949547,3394.3,3393.9,2.9465]
[1732438975548,0.55,3394.7,3393.9,2.9465]
[1732438975745,0.85167995,3394.6,3393.9,2.9465]
[1732438975936,0.7565,3394.4,3393.9,2.9465]
[1732438976271,0.09515332,3394.3,3393.9,2.9465]
[1732438977678,0.7767,3394.2,3393.9,2.9465]
[1732438978044,0.09515332,3394.1,3393.9,2.9465]
[1732438978759,0.7767,3394.5,3393.9,2.9465]
[1732438978961,0.095163,3394.4,3393.9,2.9465]
[1732438979750,0.7767,3394.3,3393.9,2.9465]
[1732438980064,0.09515574,3394.2,3393.9,2.9465]
[1732438980467,0.7767,3394.3,3393.9,2.9465]
[1732438980674,0.09515574,3394.1,3393.9,2.9465]
[1732438980835,0.7767,3394.3,3393.9,2.9465]
[1732438981376,0.09515574,3394.2,3393.9,2.9465]
[1732438981578,0.7767,3394.3,3393.9,2.9465]
[1732438981884,0.09515574,3394.2,3393.9,2.9465]
[1732438982175,0.7767,3394.3,3393.9,2.9465]
[1732438982343,0.09515574,3394.2,3393.9,2.9465]
[1732438982551,0.7767,3394.3,3393.9,2.9465]
[1732438982868,0.09515574,3394.2,3393.9,2.9465]
[1732438983184,0.7767,3394.3,3393.9,2.9465]
[1732438983386,0.09515574,3394.2,3393.9,2.9465]
[1732438983583,0.7767,3394.3,3393.9,2.9465]
[1732438983883,0.09515574,3394.2,3393.9,2.9465]
[1732438984185,0.7767,3394.3,3393.9,2.9465]
[1732438984361,0.09515574,3394.2,3393.9,2.9465]
[1732438984692,0.7767,3394.3,3393.9,2.9465]
[1732438984846,0.09510004,3394.1,3393.9,2.9465]
[1732438985043,0.7767,3394.3,3393.9,2.9465]
[1732438985288,0.09510972,3394.0,3393.9,2.9465]
[1732438985461,0.7767,3394.3,3393.9,2.9465]
[1732438985986,0.09510972,3394.2,3393.9,2.9465]
[1732438986230,0.7767,3394.3,3393.9,2.9465]
[1732438986399,0.09512183,3394.1,3393.9,2.9465]
[1732438986683,0.7767,3394.3,3393.9,2.9465]
[1732438986847,0.09512183,3394.0,3393.9,2.9465]
[1732438987050,0.7767,3394.3,3393.9,2.9465]
[1732438987245,0.09512183,3394.0,3393.9,2.9465]
[1732438987452,0.7767,3394.3,3393.9,2.9465]
[1732438987682,0.09512183,3394.0,3393.9,2.9465]
[1732438987889,0.7767,3394.3,3393.9,2.9465]
[1732438988089,0.09512183,3394.0,3393.9,2.9465]
[1732438988284,0.7767,3394.3,3393.9,2.9465]
[1732438988455,0.09512183,3394.0,3393.9,2.9465]
[1732438988992,0.7767,3394.3,3393.9,2.9465]
[1732438989157,0.09512183,3394.2,3393.9,2.9465]
[1732438989551,0.7767,3394.3,3393.9,2.9465]
[1732438989750,0.09512183,3394.2,3393.9,2.9465]
[1732438989985,0.7767,3394.3,3393.9,2.9465]
[1732438990164,0.09512183,3394.2,3393.9,2.9465]
[1732438990364,0.7767,3394.3,3393.9,2.9465]
[1732438990605,0.09512183,3394.2,3393.9,2.9465]
[1732438990905,0.7767,3394.3,3393.9,2.9465]
[1732438991387,0.09512183,3394.2,3393.9,2.9465]
[1732438991700,0.7767,3394.3,3393.9,2.9465]
[1732438991867,0.09512183,3394.1,3393.9,2.9465]
[1732438992069,0.7767,3394.3,3393.9,2.9465]
[1732438992271,0.09512183,3394.0,3393.9,2.9465]
[1732438992617,0.09505644,3394.0,3393.9,2.9465]
[1732438993090,0.7767,3394.3,3393.9,2.9465]
[1732438993294,0.09505644,3394.0,3393.9,2.9465]
[1732438993906,0.7767,3394.3,3393.9,2.9465]
[1732438994083,0.09505644,3394.0,3393.9,2.9465]
[1732438994412,0.09505644,3394.0,3393.9,3.7347]
[1732438994567,0.55,3395.0,3393.9,3.7347]
[1732438994916,0.8119,3395.1,3393.9,3.7347]
[1732438994917,0.47336751,3394.9,3393.9,3.7347]
[1732438995217,0.09505644,3394.9,3393.9,4.0288]
[1732438995372,0.8119,3395.1,3394.1,0.2941]
[1732438995571,0.8119,3395.1,3394.2,2.9462]
[1732438996978,0.09510486,3395.0,3394.2,2.97565735]
[1732438997199,0.09510486,3395.0,3394.2,2.9462]
[1732438999148,0.09510486,3395.0,3394.4,0.8273]
[1732438999435,0.09510486,3395.0,3394.5,2.9459]
[1732438999807,0.7812,3395.4,3394.5,2.9459]
[1732439000009,0.09520655,3395.3,3394.5,2.9459]
[1732439002419,0.09520655,3395.3,3394.6,0.02945444]
[1732439002619,0.09520655,3395.3,3394.7,2.9458]
[1732439003019,0.09520655,3395.3,3394.7,3.32605544]
[1732439003229,0.7689,3395.7,3394.8,0.8118]
[1732439003544,0.7689,3395.7,3394.9,2.9456]
[1732439003849,0.09532033,3395.6,3394.9,2.9456]